[Event "HUN-ch Rapid 2019"]
[Site "Ajka"]
[Date "2019.07.20"]
[Round "8.19"]
[White "Terbe, Julianna"]
[Black "Farago, Sandor"]
[Result "0-1"]
[ECO "A45"]
[WhiteElo "2298"]
[BlackElo "2210"]
[Annotator "ChessBase"]
[PlyCount "122"]
[EventDate "2019.07.18"]
[EventType "swiss"]
[EventCountry "HUN"]
[SourceTitle "playchess.com"]
[Source "ChessBase"]
[SourceQuality "1"]
[TimeControl "1200+5"]

1. d4 {[%emt 0:00:02]} Nf6 2. Bf4 {[%emt 0:00:04]} d6 {[%emt 0:00:03]} 3. Nf3 {[%emt 0:00:09]} Nbd7 {[%emt 0:00:06]} 4. h3 {[%emt 0:00:12]} c5 {[%emt 0:00:06]} 5. e3 {[%emt 0:00:04]} g6 {[%emt 0:00:05]} 6. Be2 {[%emt 0:00:05]} Bg7 {[%emt 0:00:01]} 7. O-O {[%emt 0:00:08]} O-O {[%emt 0:00:02]} 8. c3 {[%emt 0:00:02]} b6 {[%emt 0:00:08]} 9. Nbd2 {[%emt 0:00:03]} Bb7 {[%emt 0:00:01]} 10. a4 {[%emt 0:00:01]} a6 {[%emt 0:00:11]} 11. Bh2 {[%emt 0:00:02]} Qc7 {[%emt 0:00:11]} 12. Bd3 {[%emt 0:00:03]} e5 {[%emt 0:00:23]} 13. e4 {[%emt 0:00:05]} Rfe8 {[%emt 0:00:23]} 14. Re1 {[%emt 0:00:06]} Nh5 {[%emt 0:00:09]} 15. dxe5 {[%emt 0:00:57]} dxe5 {[%emt 0:00:08]} 16. Qb3 {[%emt 0:00:03]} h6 {[%emt 0:00:08]} 17. Bc4 {[%emt 0:00:41]} Re7 {[%emt 0:00:08]} 18. Nf1 {[%emt 0:00:28]} Nf4 {[%emt 0:00:16]} 19. Rad1 {[%emt 0:00:31]} Rf8 {[%emt 0:00:08]} 20. Qc2 {[%emt 0:00:17]} Kh7 {[%emt 0:00:15]} 21. Ne3 {[%emt 0:00:20]} Nf6 {[%emt 0:00:22]} 22. Nd5 {[%emt 0:01:08]} N6xd5 {[%emt 0:00:14]} 23. exd5 {[%emt 0:00:13]} Qd6 {[%emt 0:00:16]} 24. Bxf4 {[%emt 0:01:20]} exf4 {[%emt 0:00:01]} 25. Rxe7 {[%emt 0:00:02]} Qxe7 {[%emt 0:00:01]} 26. Qd3 {[%emt 0:00:28]} Ra8 {[%emt 0:00:35]} 27. Re1 {[%emt 0:02:10]} Qd6 {[%emt 0:00:05]} 28. Nd2 {[%emt 0:00:13]} Bc8 {[%emt 0:00:22]} 29. Ne4 {[%emt 0:00:17]} Qd7 {[%emt 0:00:44]} 30. Qf3 {[%emt 0:00:42]} b5 {[%emt 0:00:40]} 31. Ba2 {[%emt 0:02:01]} c4 {[%emt 0:00:20]} 32. Qxf4 {[%emt 0:01:18]} Qxd5 {[%emt 0:00:04]} 33. Bb1 {[%emt 0:00:31]} Bb7 {[%emt 0:00:14]} 34. f3 {[%emt 0:00:57]} Rd8 {[%emt 0:00:49]} 35. axb5 {[%emt 0:00:37]} axb5 {[%emt 0:00:02]} 36. Nf6+ {[%emt 0:00:25]} Bxf6 {[%emt 0:00:02]} 37. Qxf6 {[%emt 0:00:01]} Rd7 {[%emt 0:05:03]} 38. Kh1 {[%emt 0:03:27]} Qg5 {[%emt 0:00:32]} 39. Qxg5 {[%emt 0:01:04]} hxg5 {[%emt 0:00:01]} 40. Bc2 {[%emt 0:00:05]} Rd2 {[%emt 0:00:09]} 41. Rc1 {[%emt 0:00:01]} f5 {[%emt 0:00:06]} 42. Kg1 {[%emt 0:00:03]} g4 {[%emt 0:00:12]} 43. hxg4 {[%emt 0:00:18]} fxg4 {[%emt 0:00:00]} 44. Rd1 {[%emt 0:00:11]} Rxc2 {[%emt 0:00:11]} 45. Rd7+ {[%emt 0:00:01]} Kh6 {[%emt 0:00:02]} 46. Rxb7 {[%emt 0:00:01]} Rxb2 {[%emt 0:00:01]} 47. fxg4 {[%emt 0:00:21]} Kg5 {[%emt 0:00:01]} 48. Rb6 {[%emt 0:00:10]} b4 {[%emt 0:00:45]} 49. cxb4 {[%emt 0:01:03]} c3 {[%emt 0:00:01]} 50. Rc6 {[%emt 0:00:01]} c2 {[%emt 0:00:01]} 51. Kh2 {[%emt 0:00:01]} Kf4 {[%emt 0:00:01]} 52. b5 {[%emt 0:00:08]} Ke3 {[%emt 0:00:01]} 53. b6 {[%emt 0:00:05]} Kd3 {[%emt 0:00:05]} 54. Rd6+ {[%emt 0:00:02]} Ke3 {[%emt 0:00:17]} 55. Re6+ {[%emt 0:00:08]} Kd4 {[%emt 0:00:07]} 56. Rc6 {[%emt 0:00:06]} g5 {[%emt 0:00:32]} 57. b7 {[%emt 0:00:02]} Kd3 {[%emt 0:00:00]} 58. Rd6+ {[%emt 0:00:01]} Ke2 {[%emt 0:00:03]} 59. Rc6 {[%emt 0:00:11]} Kd2 {[%emt 0:00:01]} 60. Rd6+ {[%emt 0:00:21]} Kc1 {[%emt 0:00:04]} 61. Rd7 Kb1 {[%emt 0:00:04]} 0-1

[Event "HUN-ch Rapid 2019"]
[Site "Ajka"]
[Date "2019.07.20"]
[Round "8.20"]
[White "Bohus, Adam"]
[Black "Kiss, Pal"]
[Result "1-0"]
[ECO "D12"]
[WhiteElo "2219"]
[BlackElo "2278"]
[Annotator "ChessBase"]
[PlyCount "81"]
[EventDate "2019.07.18"]
[EventType "swiss"]
[EventCountry "HUN"]
[SourceTitle "playchess.com"]
[Source "ChessBase"]
[SourceQuality "1"]
[TimeControl "1200+5"]

1. d4 {[%emt 0:00:02]} d5 {[%emt 0:00:03]} 2. Nf3 {[%emt 0:00:02]} Nf6 {[%emt 0:00:03]} 3. c4 {[%emt 0:00:01]} c6 {[%emt 0:00:02]} 4. e3 {[%emt 0:00:09]} Bf5 {[%emt 0:00:05]} 5. Nc3 {[%emt 0:00:05]} e6 {[%emt 0:00:04]} 6. Nh4 {[%emt 0:00:06]} Be4 {[%emt 0:00:08]} 7. f3 {[%emt 0:00:04]} Bg6 {[%emt 0:00:02]} 8. Qb3 {[%emt 0:00:03]} Qb6 {[%emt 0:00:04]} 9. Bd2 {[%emt 0:01:45]} Qxb3 {[%emt 0:00:38]} 10. axb3 {[%emt 0:00:02]} Bc2 {[%emt 0:00:07]} 11. e4 {[%emt 0:02:33]} dxe4 {[%emt 0:02:10]} 12. Rc1 {[%emt 0:00:15]} Bd3 {[%emt 0:02:30]} 13. fxe4 {[%emt 0:10:00]} Bxe4 {[%emt 0:00:27]} 14. Bg5 {[%emt 0:00:07]} Nbd7 {[%emt 0:03:37]} 15. Be2 {[%emt 0:01:02]} h6 {[%emt 0:01:48]} 16. Be3 {[%emt 0:01:04]} Bh7 {[%emt 0:00:41]} 17. O-O {[%emt 0:00:04]} Bd6 {[%emt 0:02:49]} 18. d5 {[%emt 0:01:37]} exd5 {[%emt 0:01:10]} 19. cxd5 {[%emt 0:00:02]} Nxd5 {[%emt 0:00:25]} 20. Nxd5 cxd5 21. Bb5 {[%emt 0:00:21]} a6 {[%emt 0:00:45]} 22. Bxd7+ {[%emt 0:00:23]} Kxd7 {[%emt 0:00:02]} 23. Rxf7+ {[%emt 0:00:02]} Ke6 {[%emt 0:00:24]} 24. Rxg7 {[%emt 0:00:38]} Be4 {[%emt 0:00:41]} 25. Bd4 {[%emt 0:01:00]} Rhg8 {[%emt 0:00:26]} 26. Rxb7 {[%emt 0:00:28]} Rab8 {[%emt 0:00:43]} 27. Rxb8 {[%emt 0:00:01]} Rxb8 {[%emt 0:00:01]} 28. Rc6 {[%emt 0:00:06]} Rxb3 {[%emt 0:01:00]} 29. Bc5 {[%emt 0:00:03]} Rxb2 {[%emt 0:00:12]} 30. Rxd6+ {[%emt 0:00:02]} Ke5 {[%emt 0:00:03]} 31. Rxa6 {[%emt 0:00:18]} d4 {[%emt 0:00:33]} 32. Nf3+ {[%emt 0:00:08]} Bxf3 {[%emt 0:00:02]} 33. gxf3 {[%emt 0:00:00]} d3 {[%emt 0:00:10]} 34. Rd6 {[%emt 0:00:10]} Rb5 {[%emt 0:00:14]} 35. Ba3 {[%emt 0:00:03]} Rb3 {[%emt 0:00:01]} 36. Bc5 {[%emt 0:00:06]} Rb5 {[%emt 0:00:08]} 37. Ba3 {[%emt 0:00:02]} Rb3 {[%emt 0:00:01]} 38. f4+ {[%emt 0:00:02]} Kxf4 {[%emt 0:00:11]} 39. Bc1+ {[%emt 0:00:04]} Ke5 {[%emt 0:00:07]} 40. Rc6 {[%emt 0:00:13]} Rb1 41. Kf2 1-0

[Event "HUN-ch Rapid 2019"]
[Site "Ajka"]
[Date "2019.07.20"]
[Round "9.4"]
[White "Mihok, Oliver"]
[Black "Hera, Imre Jr."]
[Result "0-1"]
[ECO "C41"]
[WhiteElo "2550"]
[BlackElo "2610"]
[Annotator "RC"]
[PlyCount "82"]
[EventDate "2019.07.18"]
[EventType "swiss"]
[EventCountry "HUN"]
[SourceTitle "playchess.com"]
[Source "ChessBase"]
[SourceQuality "1"]
[TimeControl "1200+5"]

1. e4 {[%emt 0:00:02]} e5 {[%emt 0:00:06]} 2. Nf3 {[%emt 0:00:02]} d6 {[%emt 0:00:01]} 3. d4 {[%emt 0:00:05]} exd4 {[%emt 0:00:02]} 4. Nxd4 {[%emt 0:00:02]} Nf6 {[%emt 0:00:02]} 5. Nc3 {[%emt 0:00:01]} Be7 {[%emt 0:00:01]} 6. Be2 {[%emt 0:00:03]} O-O {[%emt 0:00:04]} 7. Bf4 {[%emt 0:00:02]} Re8 {[%emt 0:00:01]} 8. Qd2 {[%emt 0:00:09]} Nc6 {[%emt 0:00:02]} 9. O-O-O {[%emt 0:00:25]} Nxd4 {[%emt 0:00:06]} 10. Qxd4 {[%emt 0:00:02]} Be6 {[%emt 0:00:02]} 11. Kb1 {[%emt 0:01:29]} a6 {[%emt 0:00:05]} 12. f3 {[%emt 0:00:28]} b5 {[%emt 0:00:14]} 13. g4 {[%emt 0:00:34]} c5 {[%emt 0:00:13]} 14. Qd2 {[%emt 0:00:03]} b4 {[%emt 0:00:13]} 15. Nd5 {[%emt 0:00:06]} Nxd5 {[%emt 0:00:16]} 16. exd5 {[%emt 0:00:02]} Bd7 {[%emt 0:00:01]} 17. Bd3 {[%emt 0:01:31]} Bb5 {[%emt 0:00:41]} 18. Be4 {[%emt 0:00:04]} Bf6 {[%emt 0:00:14]} 19. g5 {[%emt 0:00:06]} Be5 {[%emt 0:00:14]} 20. h4 {[%emt 0:00:20]} a5 {[%emt 0:00:12]} 21. h5 {[%emt 0:00:34]} c4 {[%emt 0:01:13]} 22. g6 {[%emt 0:00:17]} c3 {[%emt 0:00:30]} 23. Qh2 {[%emt 0:01:56]} Qf6 {[%emt 0:01:18]} 24. Bxe5 {[%emt 0:00:31]} Rxe5 {[%emt 0:01:38]} 25. gxf7+ {[%emt 0:04:02]} Qxf7 {[%emt 0:00:25]} 26. Qg1 {[%emt 0:02:48]} Be2 {[%emt 0:01:26]} 27. Re1 {[%emt 0:00:52]} Bxf3 {[%emt 0:00:17]} 28. Bxf3 {[%emt 0:00:24]} Qxf3 {[%emt 0:01:54]} 29. h6 {[%emt 0:00:06]} g6 {[%emt 0:01:14]} 30. Rf1 {[%emt 0:01:32]} Qe3 {[%emt 0:02:09]} 31. Qg4 {[%emt 0:01:00]} Rae8 {[%emt 0:00:05]} 32. Rd1 {[%emt 0:00:51]} Qe4 {[%emt 0:00:48]} 33. Qd7 {[%emt 0:00:16]} R5e7 {[%emt 0:00:03]} 34. Qh3 {[%emt 0:00:04]} a4 {[%emt 0:01:35]} 35. bxc3 {[%emt 0:00:34]} b3 {[%emt 0:00:07]} 36. Qd3 {[%emt 0:00:17]} bxc2+ {[%emt 0:00:17]} 37. Qxc2 {[%emt 0:00:22]} Rb7+ {[%emt 0:00:19]} 38. Kc1 {[%emt 0:00:01]} Qe3+ {[%emt 0:00:53]} 39. Rd2 {[%emt 0:00:24]} Rc8 {[%emt 0:00:21]} 40. c4 {[%emt 0:00:01]} Rb4 {[%emt 0:00:17]} 41. Rh4 {[%emt 0:00:43]} Qe1+ {[%emt 0:00:04]} 0-1

[Event "HUN-ch Rapid 2019"]
[Site "Ajka"]
[Date "2019.07.20"]
[Round "9.5"]
[White "Prohaszka, Peter"]
[Black "Popovics, Adam"]
[Result "1/2-1/2"]
[ECO "D71"]
[WhiteElo "2598"]
[BlackElo "2365"]
[Annotator "ChessBase"]
[PlyCount "90"]
[EventDate "2019.07.18"]
[EventType "swiss"]
[EventCountry "HUN"]
[SourceTitle "playchess.com"]
[Source "ChessBase"]
[SourceQuality "1"]
[TimeControl "1200+5"]

1. d4 {[%emt 0:00:01]} Nf6 {[%emt 0:00:02]} 2. c4 {[%emt 0:00:01]} g6 {[%emt 0:00:02]} 3. g3 {[%emt 0:00:02]} c5 {[%emt 0:00:27]} 4. Nf3 {[%emt 0:00:11]} Bg7 {[%emt 0:00:14]} 5. Bg2 {[%emt 0:00:06]} cxd4 {[%emt 0:00:18]} 6. Nxd4 {[%emt 0:00:01]} Nc6 {[%emt 0:00:01]} 7. O-O {[%emt 0:00:08]} O-O {[%emt 0:00:02]} 8. Nc3 {[%emt 0:00:05]} d6 {[%emt 0:00:15]} 9. e3 {[%emt 0:00:42]} Bd7 {[%emt 0:00:06]} 10. Nde2 {[%emt 0:00:26]} Rc8 {[%emt 0:00:17]} 11. b3 {[%emt 0:00:08]} a6 {[%emt 0:00:05]} 12. Bb2 {[%emt 0:00:28]} Qa5 {[%emt 0:00:05]} 13. a4 {[%emt 0:01:05]} Rfd8 {[%emt 0:00:48]} 14. h3 {[%emt 0:00:09]} Be8 {[%emt 0:00:35]} 15. Rb1 {[%emt 0:01:04]} Rb8 {[%emt 0:01:05]} 16. Ba3 {[%emt 0:00:25]} Qc7 {[%emt 0:00:28]} 17. Qd2 {[%emt 0:00:31]} Ne5 {[%emt 0:00:17]} 18. Rfc1 {[%emt 0:00:23]} Rbc8 {[%emt 0:01:01]} 19. Nf4 {[%emt 0:01:17]} Qb8 {[%emt 0:01:53]} 20. Ncd5 {[%emt 0:01:46]} Nxd5 {[%emt 0:00:03]} 21. Nxd5 {[%emt 0:00:01]} Kf8 {[%emt 0:00:06]} 22. a5 {[%emt 0:00:16]} Bc6 {[%emt 0:00:17]} 23. f4 {[%emt 0:00:52]} Nd7 {[%emt 0:00:15]} 24. b4 {[%emt 0:00:35]} b5 {[%emt 0:00:45]} 25. axb6 {[%emt 0:01:13]} Nxb6 {[%emt 0:00:08]} 26. b5 {[%emt 0:02:34]} axb5 {[%emt 0:03:04]} 27. cxb5 {[%emt 0:00:51]} Bxd5 {[%emt 0:00:02]} 28. Bxd5 {[%emt 0:00:02]} Qa7 {[%emt 0:00:09]} 29. Rxc8 {[%emt 0:00:19]} Rxc8 {[%emt 0:00:01]} 30. Bc1 {[%emt 0:00:36]} Nxd5 {[%emt 0:00:08]} 31. Qxd5 {[%emt 0:00:02]} Rxc1+ {[%emt 0:00:01]} 32. Rxc1 {[%emt 0:00:01]} Qxe3+ {[%emt 0:00:02]} 33. Kh2 {[%emt 0:00:01]} Bd4 {[%emt 0:00:20]} 34. Rc8+ {[%emt 0:02:00]} Kg7 {[%emt 0:00:02]} 35. Qg2 {[%emt 0:00:03]} h5 {[%emt 0:00:57]} 36. h4 {[%emt 0:00:02]} e5 {[%emt 0:00:10]} 37. fxe5 {[%emt 0:01:40]} Bxe5 {[%emt 0:00:01]} 38. Rc7 {[%emt 0:00:58]} Qb6 {[%emt 0:00:40]} 39. Rb7 {[%emt 0:00:14]} Qd4 {[%emt 0:00:04]} 40. Qf3 {[%emt 0:01:10]} Qxh4+ {[%emt 0:00:05]} 41. Kg2 {[%emt 0:00:06]} Qc4 {[%emt 0:00:04]} 42. b6 {[%emt 0:00:04]} Qc2+ {[%emt 0:00:32]} 43. Kh3 {[%emt 0:00:20]} Qc8+ {[%emt 0:00:02]} 44. Kg2 {[%emt 0:00:01]} Qc2+ {[%emt 0:00:02]} 45. Kh3 {[%emt 0:00:28]} Qc8+ {[%emt 0:00:04]} 1/2-1/2

[Event "HUN-ch Rapid 2019"]
[Site "Ajka"]
[Date "2019.07.20"]
[Round "9.7"]
[White "Vertetics, Attila"]
[Black "Horvath, Peter"]
[Result "1/2-1/2"]
[ECO "D31"]
[WhiteElo "2438"]
[BlackElo "2418"]
[Annotator "NA"]
[PlyCount "58"]
[EventDate "2019.07.18"]
[EventType "swiss"]
[EventCountry "HUN"]
[SourceTitle "playchess.com"]
[Source "ChessBase"]
[SourceQuality "1"]
[TimeControl "1200+5"]

1. d4 {[%emt 0:00:01]} d5 {[%emt 0:00:03]} 2. c4 {[%emt 0:00:02]} e6 {[%emt 0:00:02]} 3. Nc3 {[%emt 0:00:02]} Bb4 {[%emt 0:00:03]} 4. cxd5 {[%emt 0:00:06]} exd5 {[%emt 0:00:03]} 5. Nf3 {[%emt 0:00:05]} Nf6 {[%emt 0:00:03]} 6. Bg5 {[%emt 0:00:10]} Nbd7 {[%emt 0:00:03]} 7. e3 {[%emt 0:01:42]} c5 {[%emt 0:00:02]} 8. Bxf6 {[%emt 0:00:32]} Qxf6 {[%emt 0:01:05]} 9. a3 {[%emt 0:00:51]} Bxc3+ {[%emt 0:00:42]} 10. bxc3 {[%emt 0:00:01]} c4 {[%emt 0:00:23]} 11. Nd2 {[%emt 0:00:19]} O-O {[%emt 0:00:22]} 12. g3 {[%emt 0:01:14]} Qh6 {[%emt 0:03:02]} 13. Bg2 {[%emt 0:00:26]} Nf6 {[%emt 0:00:03]} 14. O-O {[%emt 0:04:52]} Bf5 {[%emt 0:00:04]} 15. Re1 {[%emt 0:00:11]} Rfe8 {[%emt 0:01:04]} 16. Ra2 {[%emt 0:00:24]} Bd3 {[%emt 0:01:54]} 17. Rb2 {[%emt 0:00:28]} Ne4 {[%emt 0:00:10]} 18. Nxe4 {[%emt 0:00:04]} dxe4 {[%emt 0:00:04]} 19. Rxb7 {[%emt 0:02:57]} Qa6 {[%emt 0:00:31]} 20. Rb4 {[%emt 0:00:02]} Qxa3 {[%emt 0:02:17]} 21. Qa1 {[%emt 0:00:01]} Qxa1 {[%emt 0:00:19]} 22. Rxa1 {[%emt 0:00:00]} a5 {[%emt 0:00:03]} 23. Rba4 {[%emt 0:00:37]} Reb8 {[%emt 0:00:28]} 24. f3 {[%emt 0:00:03]} f5 {[%emt 0:00:13]} 25. fxe4 {[%emt 0:00:03]} fxe4 {[%emt 0:00:02]} 26. Rxa5 {[%emt 0:00:23]} Rxa5 {[%emt 0:00:21]} 27. Rxa5 {[%emt 0:00:01]} Rb1+ {[%emt 0:00:21]} 28. Kf2 {[%emt 0:00:01]} Rb2+ {[%emt 0:00:02]} 29. Kg1 {[%emt 0:00:01]} Rb3 1/2-1/2

[Event "HUN-ch Rapid 2019"]
[Site "Ajka"]
[Date "2019.07.20"]
[Round "9.8"]
[White "Farago, Sandor"]
[Black "Ruck, Robert"]
[Result "0-1"]
[ECO "B18"]
[WhiteElo "2210"]
[BlackElo "2524"]
[Annotator "ChessBase"]
[PlyCount "90"]
[EventDate "2019.07.18"]
[EventType "swiss"]
[EventCountry "HUN"]
[SourceTitle "playchess.com"]
[Source "ChessBase"]
[SourceQuality "1"]
[TimeControl "1200+5"]

1. e4 {[%emt 0:00:03]} c6 {[%emt 0:00:25]} 2. d4 {[%emt 0:00:02]} d5 {[%emt 0:00:01]} 3. Nc3 dxe4 4. Nxe4 {[%emt 0:00:10]} Bf5 {[%emt 0:00:07]} 5. Ng3 {[%emt 0:00:06]} Bg6 {[%emt 0:00:01]} 6. Nf3 {[%emt 0:00:02]} Nd7 {[%emt 0:00:01]} 7. Bc4 {[%emt 0:00:24]} e6 {[%emt 0:00:12]} 8. Qe2 {[%emt 0:00:02]} Ngf6 {[%emt 0:00:14]} 9. c3 {[%emt 0:01:04]} Be7 {[%emt 0:00:18]} 10. Ne5 {[%emt 0:00:15]} Nxe5 {[%emt 0:02:39]} 11. dxe5 {[%emt 0:00:03]} Nd7 {[%emt 0:00:10]} 12. O-O {[%emt 0:00:22]} b5 {[%emt 0:01:14]} 13. Bb3 {[%emt 0:00:02]} Nc5 {[%emt 0:00:01]} 14. Rd1 {[%emt 0:00:01]} Qc7 {[%emt 0:00:01]} 15. Bf4 {[%emt 0:00:24]} O-O {[%emt 0:00:33]} 16. Bc2 {[%emt 0:00:19]} Rfd8 {[%emt 0:01:01]} 17. Bxg6 {[%emt 0:00:38]} hxg6 {[%emt 0:00:02]} 18. Ne4 {[%emt 0:00:05]} Nxe4 {[%emt 0:00:20]} 19. Qxe4 {[%emt 0:00:01]} Rd5 {[%emt 0:00:02]} 20. c4 {[%emt 0:00:37]} bxc4 {[%emt 0:01:23]} 21. Qxc4 {[%emt 0:00:02]} Qb6 {[%emt 0:00:09]} 22. Be3 {[%emt 0:01:52]} Qxb2 {[%emt 0:00:09]} 23. Rdb1 {[%emt 0:02:32]} Qxe5 {[%emt 0:00:23]} 24. Qxc6 {[%emt 0:00:02]} Rad8 {[%emt 0:00:36]} 25. g3 {[%emt 0:00:08]} a5 {[%emt 0:00:14]} 26. Re1 {[%emt 0:00:24]} Qf5 {[%emt 0:00:48]} 27. a3 {[%emt 0:00:59]} Kh7 {[%emt 0:01:41]} 28. Qa4 {[%emt 0:00:17]} Rd3 {[%emt 0:00:19]} 29. Bb6 {[%emt 0:00:19]} R8d5 {[%emt 0:00:19]} 30. Ra2 {[%emt 0:00:37]} Rb5 {[%emt 0:01:52]} 31. Be3 {[%emt 0:01:02]} Rbb3 {[%emt 0:00:36]} 32. Qe8 {[%emt 0:00:04]} Bxa3 {[%emt 0:00:49]} 33. Rae2 {[%emt 0:00:15]} Bb4 {[%emt 0:00:42]} 34. Rc1 {[%emt 0:00:10]} Rbc3 {[%emt 0:00:19]} 35. Rxc3 {[%emt 0:01:39]} Bxc3 {[%emt 0:00:03]} 36. Qa4 {[%emt 0:01:52]} Qd5 {[%emt 0:00:16]} 37. f4 {[%emt 0:01:22]} Rxe3 {[%emt 0:00:58]} 38. Rxe3 {[%emt 0:00:10]} Bd4 {[%emt 0:00:01]} 39. Kf2 {[%emt 0:00:08]} Qc5 {[%emt 0:00:02]} 40. Qb3 {[%emt 0:00:35]} a4 {[%emt 0:00:05]} 41. Qxa4 {[%emt 0:00:33]} Bxe3+ {[%emt 0:00:02]} 42. Kf3 {[%emt 0:00:01]} Bg1 {[%emt 0:00:02]} 43. Qe8 {[%emt 0:00:49]} Qd5+ {[%emt 0:00:18]} 44. Ke2 {[%emt 0:00:35]} Qe4+ {[%emt 0:00:03]} 45. Kf1 {[%emt 0:00:14]} Be3 {[%emt 0:00:05]} 0-1

[Event "HUN-ch Rapid 2019"]
[Site "Ajka"]
[Date "2019.07.20"]
[Round "9.9"]
[White "Horvath, Tamas"]
[Black "Medvegy, Zoltan"]
[Result "1/2-1/2"]
[ECO "B29"]
[WhiteElo "2306"]
[BlackElo "2539"]
[Annotator "ChessBase"]
[PlyCount "77"]
[EventDate "2019.07.18"]
[EventType "swiss"]
[EventCountry "HUN"]
[SourceTitle "playchess.com"]
[Source "ChessBase"]
[SourceQuality "1"]
[TimeControl "1200+5"]

1. e4 c5 2. Nf3 Nf6 3. e5 Nd5 4. Nc3 Nxc3 5. dxc3 Nc6 6. Bf4 Qc7 7. Qd2 e6 8. Bd3 h6 9. h4 a6 10. Be4 b5 11. Qe3 Bb7 12. a4 d5 13. exd6 Bxd6 14. Bxd6 Qxd6 15. Rd1 Qe7 16. Rh3 O-O 17. Rg3 Kh8 18. Bxc6 Bxc6 19. Ne5 Be8 20. Qf4 f6 21. Ng4 bxa4 22. Rgd3 Ra7 23. Rd6 Bh5 24. R1d2 Bxg4 25. Qxg4 a3 26. bxa3 f5 27. Qc4 f4 28. Qxe6 Qxh4 29. Qh3 Qe7+ 30. Re6 Qf7 31. Rdd6 Re7 32. Kf1 Rxe6 33. Qxe6 Qxe6 34. Rxe6 Rb8 35. Rxa6 Rb2 36. Rc6 Rxc2 37. Rxc5 Ra2 38. Rc4 Rxa3 39. Rxf4 1/2-1/2

[Event "HUN-ch Rapid 2019"]
[Site "Ajka"]
[Date "2019.07.20"]
[Round "9.10"]
[White "Marosi, Levente"]
[Black "Videki, Sandor"]
[Result "0-1"]
[ECO "B30"]
[WhiteElo "2225"]
[BlackElo "2401"]
[Annotator "NA"]
[PlyCount "74"]
[EventDate "2019.07.18"]
[EventType "swiss"]
[EventCountry "HUN"]
[SourceTitle "playchess.com"]
[Source "ChessBase"]
[SourceQuality "1"]
[TimeControl "1200+5"]

1. e4 {[%emt 0:00:02]} c5 {[%emt 0:00:07]} 2. Nf3 {[%emt 0:00:02]} Nc6 {[%emt 0:00:01]} 3. g3 {[%emt 0:00:15]} g6 {[%emt 0:00:14]} 4. Bg2 {[%emt 0:00:13]} Bg7 {[%emt 0:00:01]} 5. O-O {[%emt 0:00:03]} e5 {[%emt 0:00:49]} 6. c3 {[%emt 0:00:13]} Nge7 {[%emt 0:00:03]} 7. Na3 {[%emt 0:00:36]} O-O {[%emt 0:00:11]} 8. d3 {[%emt 0:00:38]} d5 {[%emt 0:00:16]} 9. exd5 {[%emt 0:00:19]} Nxd5 {[%emt 0:00:03]} 10. Re1 {[%emt 0:00:03]} Re8 {[%emt 0:00:39]} 11. Nc4 {[%emt 0:00:11]} h6 {[%emt 0:01:03]} 12. a4 {[%emt 0:00:21]} Bf5 {[%emt 0:00:49]} 13. h3 {[%emt 0:03:10]} Nb6 {[%emt 0:00:42]} 14. Nxb6 {[%emt 0:03:01]} Qxb6 {[%emt 0:00:50]} 15. g4 {[%emt 0:00:30]} Be6 {[%emt 0:00:11]} 16. Nd2 {[%emt 0:00:03]} Rad8 {[%emt 0:00:10]} 17. Qc2 {[%emt 0:00:22]} Na5 {[%emt 0:00:35]} 18. Ra3 {[%emt 0:01:39]} Rd7 {[%emt 0:01:02]} 19. Bf1 {[%emt 0:00:14]} Qd8 {[%emt 0:00:19]} 20. Nc4 {[%emt 0:01:12]} Nxc4 {[%emt 0:00:27]} 21. dxc4 {[%emt 0:00:01]} f5 {[%emt 0:00:06]} 22. Ra1 {[%emt 0:02:20]} Kh7 {[%emt 0:00:53]} 23. Be3 {[%emt 0:02:31]} fxg4 {[%emt 0:00:21]} 24. Rad1 {[%emt 0:00:16]} Bf5 {[%emt 0:01:34]} 25. Qb3 {[%emt 0:00:20]} gxh3 {[%emt 0:00:04]} 26. Rxd7 {[%emt 0:00:44]} Qxd7 {[%emt 0:00:05]} 27. Rd1 {[%emt 0:00:06]} Qe7 {[%emt 0:01:11]} 28. Kh2 {[%emt 0:00:58]} e4 {[%emt 0:00:24]} 29. Be2 {[%emt 0:00:07]} Be5+ {[%emt 0:00:11]} 30. Kh1 {[%emt 0:00:01]} Bb8 {[%emt 0:00:46]} 31. Rg1 {[%emt 0:01:04]} Rd8 {[%emt 0:00:52]} 32. Qb5 {[%emt 0:00:17]} b6 {[%emt 0:00:07]} 33. a5 {[%emt 0:00:36]} Rd3 {[%emt 0:01:28]} 34. axb6 {[%emt 0:00:13]} axb6 {[%emt 0:00:22]} 35. Qxb6 {[%emt 0:00:03]} Qe5 {[%emt 0:00:28]} 36. Rg3 {[%emt 0:00:07]} Rxe3 {[%emt 0:00:18]} 37. Qb7+ {[%emt 0:00:01]} Bc7 {[%emt 0:00:02]} 0-1